[Event "Teplice Open 2022"]
[Site "Teplice"]
[Date "2022.06.21"]
[Round "4.7"]
[White "Narayanan.S.L"]
[Black "Ghazarian, Kirk"]
[Result "1/2-1/2"]
[ECO "D44"]
[WhiteElo "2662"]
[BlackElo "2427"]
[Annotator "TA"]
[PlyCount "188"]
[EventDate "2022.06.18"]
[EventType "swiss"]
[EventCountry "CZE"]
[SourceTitle "playchess.com"]
[Source "ChessBase"]
[SourceQuality "1"]
[TimeControl "40/5400+30:1800+30"]

{[%evp 21,188,-84,-74,-79,-65,-77,-65,-29,-35,-49,-23,-47,0,-17,0,0,0,0,0,0,0,0,0,0,0,-68,-20,-20,-22,-17,-22,-21,-3,-27,-16,-15,-11,-88,-95,-91,-57,-56,-48,-50,-48,-49,-15,-60,0,-13,-8,-8,0,-8,0,0,0,0,0,0,0,0,0,0,7,0,0,0,5,0,5,0,7,0,0,0,0,0,8,8,8,8,8,8,8,8,8,8,8,8,8,0,8,8,8,8,8,8,8,8,8,0,8,8,8,8,8,8,8,8,8,8,8,8,8,8,8,8,8,8,8,8,8,8,8,8,8,8,8,8,8,8,8,8,8,8,8,0,8,8,8,8,8,8,8,8,8,8,8,8,8,8,8,8,8,8,8,8,8,8,8,8,8,8,8,0,8,0,8]} 1. d4 {[%emt 0:00:03]} d5 {[%emt 0:00:40]} 2. c4 {[%emt 0:00:14]} e6 {[%emt 0:00:16]} 3. Nf3 {[%emt 0:00:33]} Nf6 {[%emt 0:00:09]} 4. Nc3 {[%emt 0:00:10]} c6 {[%emt 0:04:06]} 5. Bg5 {[%emt 0:00:17]} dxc4 {[%emt 0:00:09]} 6. e4 {[%emt 0:00:41]} b5 {[%emt 0:00:17]} 7. e5 {[%emt 0:00:06]} h6 {[%emt 0:00:08]} 8. Bh4 {[%emt 0:00:05]} g5 {[%emt 0:00:08]} 9. Bg3 {[%emt 0:01:34]} Nd5 {[%emt 0:02:41]} 10. Nd2 {[%emt 0:00:11]} Bb7 {[%emt 0:11:16]} 11. Nde4 {[%emt 0:02:31]} Nd7 {[%emt 0:09:00]} 12. Be2 {[%emt 0:10:14]} Nxc3 {[%emt 0:06:42]} 13. bxc3 {[%emt 0:01:17]} c5 {[%emt 0:06:15]} 14. Bf3 {[%emt 0:00:46]} Qb6 {[%emt 0:04:54]} 15. dxc5 {[%emt 0:09:46]} Bxc5 {[%emt 0:01:07]} 16. O-O {[%emt 0:05:57]} Rd8 {[%emt 0:03:10]} (16... O-O-O $15 {is superior.} 17. Qe2 Bxe4 18. Qxe4 Be7) 17. Qe2 {[%emt 0:03:08]} Be7 {[%emt 0:01:06]} 18. Nd6+ {[%emt 0:08:46]} Bxd6 {[%emt 0:00:15]} 19. exd6 {[%emt 0:00:06]} Bxf3 {[%emt 0:01:49]} 20. Qxf3 {[%emt 0:00:27]} O-O {[%emt 0:02:42]} 21. h4 {[%emt 0:04:52]} Qc5 {[%emt 0:18:24]} 22. Rfe1 {[%emt 0:00:29]} Qf5 {[%emt 0:02:11]} 23. Qd1 {[%emt 0:00:07]} ({Better is} 23. Qc6 $11) 23... f6 {[%emt 0:01:31]} (23... a5 $1 $15 {might be stronger.}) 24. a4 $11 {[%emt 0:05:27]} a6 {[%emt 0:01:00]} 25. axb5 {[%emt 0:00:52]} axb5 {[%emt 0:00:01]} 26. Ra7 {[%emt 0:01:24]} Rf7 {[%emt 0:01:30]} 27. Rc7 {[%emt 0:09:41]} Kg7 {[%emt 0:12:59]} 28. h5 {[%emt 0:06:30]} Nf8 {[%emt 0:02:28]} 29. Qa1 {[%emt 0:07:28] [#]} (29. Qb1 $11 {remains equal.}) 29... e5 $1 $17 {[%emt 0:02:05]} 30. Qa6 {[%emt 0:04:32]} Qe6 {[%emt 0:02:26]} 31. Qxb5 {[%emt 0:00:08]} Rxd6 {[%emt 0:02:57]} 32. Rxc4 {[%emt 0:01:09]} Rb6 {[%emt 0:01:10]} 33. Qc5 {[%emt 0:05:33]} Nd7 {[%emt 0:00:12]} 34. Qc7 {[%emt 0:01:38]} Nf8 {[%emt 0:00:44]} (34... Rd6 $15 35. Qc8 Rd2) 35. Qc8 {[%emt 0:01:08]} Qxc8 {[%emt 0:00:15]} (35... Rd6 {looks sharper.} 36. Ra1 Rfd7 37. Ra8 Qf7) 36. Rxc8 {[%emt 0:00:04]} Rbb7 {[%emt 0:00:25]} 37. c4 {[%emt 0:00:55]} Rbc7 {[%emt 0:00:47]} 38. Rxc7 {[%emt 0:00:57]} Rxc7 {[%emt 0:00:01]} 39. Rxe5 $1 {[%emt 0:00:11]} Rxc4 {[%emt 0:00:13]} 40. Re7+ {[%emt 0:00:04]} Kg8 {[%emt 0:00:09]} 41. Bd6 {[%emt 0:31:10]} Rd4 {[%emt 0:30:50]} 42. Ba3 {[%emt 0:00:29]} Nd7 {[%emt 0:01:45]} 43. f3 {[%emt 0:02:13]} Rd3 {[%emt 0:00:25]} 44. Bb4 {[%emt 0:00:26]} Rd4 {[%emt 0:00:00]} 45. Ba5 {[%emt 0:00:00]} Rd5 {[%emt 0:00:00]} 46. Bc7 {[%emt 0:00:00]} Nf8 {[%emt 0:00:00]} 47. Kf2 {[%emt 0:00:00]} Rd7 {[%emt 0:00:00]} 48. Rxd7 {[%emt 0:00:00]} Nxd7 {[%emt 0:00:00]} 49. f4 {[%emt 0:00:00]} gxf4 {[%emt 0:00:00]} 50. Kf3 {[%emt 0:00:00]} f5 {[%emt 0:00:00]} 51. Kxf4 {[%emt 0:00:00]} Nf6 {[%emt 0:00:00]} 52. Kxf5 {[%emt 0:00:00]} Nxh5 {[%emt 0:00:00]} 53. Kg6 $1 {[%emt 0:00:00]} Ng7 {[%emt 0:00:00]} 54. Bf4 {[%emt 0:00:00]} h5 {[%emt 0:00:00]} 55. Kf6 {[%emt 0:00:00]} Ne8+ {[%emt 0:00:00]} 56. Kg6 {[%emt 0:00:00]} Ng7 {[%emt 0:00:00]} 57. Be5 {[%emt 0:00:00]} Ne6 {[%emt 0:00:00]} 58. Kf6 {[%emt 0:00:00]} Nd8 {[%emt 0:00:00]} 59. Bd6 {[%emt 0:00:00]} Nf7 {[%emt 0:00:00]} 60. Bc5 {[%emt 0:00:00]} Nd8 {[%emt 0:00:00]} 61. Bd6 {[%emt 0:00:00]} Nf7 {[%emt 0:00:00]} 62. Bc7 {[%emt 0:00:00]} Nh6 {[%emt 0:00:00]} 63. Kg6 {[%emt 0:00:00]} (63. Kg5 $5 {[%cal Rg5h6]} Nf7+ 64. Kxh5 $11) 63... Ng4 {[%emt 0:00:00]} 64. Bf4 {[%emt 0:00:00]} Nf2 {[%emt 0:00:00]} 65. Kxh5 {[%emt 0:00:00]} Kf7 {[%emt 0:00:00]} 66. Kg5 {[%emt 0:00:00]} Ne4+ {[%emt 0:00:00]} 67. Kf5 {[%emt 0:00:00]} Nf6 {[%emt 0:00:00]} 68. Be5 {[%emt 0:00:00]} Nd5 {[%emt 0:00:00]} 69. Bd4 {[%emt 0:00:00]} Ne7+ {[%emt 0:00:00]} 70. Kg5 {[%emt 0:00:00]} Ng6 {[%emt 0:00:00]} 71. Bc5 {[%emt 0:00:00]} Kg7 {[%emt 0:00:00]} 72. Bd6 {[%emt 0:00:00]} Kh7 {[%emt 0:00:00]} 73. Bc7 {[%emt 0:00:00]} Kg7 {[%emt 0:00:00]} 74. Bd8 {[%emt 0:00:00]} Kf7 {[%emt 0:00:00]} 75. Bf6 $1 {[%emt 0:00:08]} Nf8 {[%emt 0:00:00]} 76. Be5 {[%emt 0:00:12]} Nd7 {[%emt 0:00:00]} 77. Bd4 {[%emt 0:00:06]} Nf8 {[%emt 0:00:00]} 78. Kh6 {[%emt 0:00:56]} Ng6 {[%emt 0:00:00]} 79. Kg5 {[%emt 0:01:27]} Nf8 {[%emt 0:00:00]} 80. Bc3 {[%emt 0:00:03]} Ng6 {[%emt 0:00:00]} 81. g3 {[%emt 0:00:07]} Nf8 {[%emt 0:00:00]} 82. Be5 {[%emt 0:00:19]} Ng6 {[%emt 0:00:00]} 83. Bd6 {[%emt 0:00:03]} Kg7 {[%emt 0:00:00]} 84. Kf5 {[%emt 0:01:37]} Kf7 {[%emt 0:00:00]} 85. Bc5 {[%emt 0:00:15]} Nh8 {[%emt 0:00:00]} 86. g4 {[%emt 0:00:14]} Ng6 {[%emt 0:00:00]} 87. Bd6 {[%emt 0:00:02]} Nh4+ {[%emt 0:00:00]} 88. Kg5 {[%emt 0:00:02]} Ng6 {[%emt 0:00:00]} 89. Kh6 {[%emt 0:00:04]} Nh4 {[%emt 0:00:00]} 90. Kh7 {[%emt 0:00:10]} Ng6 {[%emt 0:00:00]} 91. g5 {[%emt 0:00:06]} Nh4 {[%emt 0:00:00]} 92. Bg3 {[%emt 0:00:56]} Ng6 $1 {[%emt 0:00:00]} 93. Bd6 {[%emt 0:00:02]} Nh4 {[%emt 0:00:00]} 94. Bg3 {[%emt 0:00:02]} Ng6 $1 {[%emt 0:00:00]} 1/2-1/2

[Event "Teplice Open 2022"]
[Site "Teplice"]
[Date "2022.06.21"]
[Round "4.8"]
[White "Seo, Jung Min"]
[Black "Berkes, Ferenc"]
[Result "1/2-1/2"]
[ECO "D37"]
[WhiteElo "2483"]
[BlackElo "2654"]
[Annotator "TA"]
[PlyCount "62"]
[EventDate "2022.06.18"]
[EventType "swiss"]
[EventCountry "CZE"]
[SourceTitle "playchess.com"]
[Source "ChessBase"]
[SourceQuality "1"]
[TimeControl "40/5400+30:1800+30"]

{[%evp 15,62,5,7,7,14,10,19,0,9,11,11,5,7,4,11,1,21,0,0,0,0,0,0,7,7,0,11,16,25,0,0,0,0,0,0,0,0,0,0,0,0,0,0,0,0,0,0,0,0]} 1. d4 {[%emt 0:00:03]} Nf6 {[%emt 0:00:06]} 2. c4 {[%emt 0:00:03]} e6 {[%emt 0:00:07]} 3. Nf3 {[%emt 0:00:09]} d5 {[%emt 0:00:07]} 4. Nc3 {[%emt 0:00:02]} Be7 {[%emt 0:00:07]} 5. Bf4 {[%emt 0:00:37]} O-O {[%emt 0:00:09]} 6. e3 {[%emt 0:00:02]} Nbd7 {[%emt 0:03:11]} 7. c5 {[%emt 0:11:35]} c6 {[%emt 0:00:00]} 8. Bd3 {[%emt 0:00:26]} b6 {[%emt 0:00:00]} 9. b4 {[%emt 0:00:03] D37: Queen's Gambit Declined: 5 Bf4.} a5 {[%emt 0:00:00]} 10. a3 {[%emt 0:00:04]} Ba6 {[%emt 0:00:00] [#] White must now prevent ...Bxd3.} 11. O-O {[%emt 0:03:05]} Qc8 {[%emt 0:00:01]} 12. h3 {[%emt 0:00:41]} Qb7 {[%emt 0:02:37]} 13. Re1 {[%emt 0:03:10] 13.Rb1 is setting a new trend.} Bxd3 {[%emt 0:09:04]} 14. Qxd3 {[%emt 0:00:29]} Rfc8 {[%emt 0:00:25]} 15. Reb1 {[%emt 0:02:48]} h6 {[%emt 0:16:15]} 16. Nd2 {[%emt 0:21:06]} (16. Na4 {with more complications.} b5 17. Nc3 axb4 18. axb4 Bd8 19. Nd2) 16... axb4 {[%emt 0:19:55]} 17. axb4 {[%emt 0:00:43]} Rxa1 {[%emt 0:00:18]} 18. Rxa1 {[%emt 0:00:05] [#]} bxc5 $146 {[%emt 0:00:05]} ({Predecessor:} 18... Ra8 19. Qb1 Bd8 20. Rxa8 Qxa8 21. Qa2 Qb7 22. Qa4 b5 23. Qa3 Ne8 24. e4 dxe4 25. Ncxe4 {0-1 (93) Firouzja,A (2728)-Nakamura,H (2736) chess24.com INT 2020}) 19. bxc5 {[%emt 0:00:06]} e5 {[%emt 0:00:06]} 20. Bg3 {[%emt 0:04:18]} exd4 {[%emt 0:00:06]} 21. exd4 {[%emt 0:00:05]} Nf8 {[%emt 0:00:09]} 22. Nf3 {[%emt 0:05:06]} Ne6 {[%emt 0:00:34] The position is equal.} 23. Be5 {[%emt 0:03:23]} Nd7 {[%emt 0:02:35]} 24. Bg3 {[%emt 0:02:01]} Bf6 {[%emt 0:01:13]} 25. Rb1 {[%emt 0:01:33] Inhibits Qb4.} Qa7 {[%emt 0:00:14]} 26. Ne2 {[%emt 0:00:45]} Qa4 {[%emt 0:25:11]} 27. Kh2 {[%emt 0:05:55]} Ra8 {[%emt 0:00:13]} 28. Bd6 {[%emt 0:02:36]} Qa2 {[%emt 0:01:30]} 29. Rb7 {[%emt 0:00:41]} Ra7 {[%emt 0:02:47]} 30. Rxa7 {[%emt 0:01:28]} Qxa7 {[%emt 0:00:07]} 31. Nf4 {[%emt 0:02:41]} Nxf4 {[%emt 0:00:06] An interesting draw.  Weighted Error Value: White=0.04 (flawless) /Black=0.02 (flawless)} 1/2-1/2

[Event "Teplice Open 2022"]
[Site "Teplice"]
[Date "2022.06.21"]
[Round "4.9"]
[White "Wachinger, Nikolas"]
[Black "Kollars, Dmitrij"]
[Result "1/2-1/2"]
[ECO "B31"]
[WhiteElo "2401"]
[BlackElo "2635"]
[Annotator "TA"]
[PlyCount "101"]
[EventDate "2022.06.18"]
[EventType "swiss"]
[EventCountry "CZE"]
[SourceTitle "playchess.com"]
[Source "ChessBase"]
[SourceQuality "1"]
[TimeControl "40/5400+30:1800+30"]

{[%evp 15,101,0,3,7,7,0,8,3,0,8,8,12,6,0,4,0,0,0,0,0,0,0,0,0,0,0,0,-15,-27,-29,-30,-21,-31,-58,-58,-58,-58,-58,-58,-97,-99,-99,-92,-86,-22,-75,-80,-69,-7,-20,-8,-24,0,-8,0,0,0,0,0,0,0,0,0,0,77,77,77,77,77,0,0,0,0,0,0,0,0,0,0,0,0,0,0,0,0,0,0,0]} 1. e4 {[%emt 0:00:05]} c5 {[%emt 0:10:32]} 2. Nf3 {[%emt 0:00:16]} Nc6 {[%emt 0:00:07]} 3. Bb5 {[%emt 0:00:11]} g6 {[%emt 0:00:11]} 4. O-O {[%emt 0:00:15]} Bg7 {[%emt 0:00:06]} 5. c3 {[%emt 0:00:08]} Nf6 {[%emt 0:00:17]} 6. Re1 {[%emt 0:00:25]} O-O {[%emt 0:00:12]} 7. d4 {[%emt 0:00:10]} d5 $1 {[%emt 0:00:10][%mdl 4] now scores much better than the old 7...cxd4.} 8. e5 {[%emt 0:00:10]} Ne4 {[%emt 0:00:05]} 9. Be3 {[%emt 0:00:19] B31: Sicilian: 2...Nc6 3 Bb5 g6.} Qb6 {[%emt 0:00:16]} 10. Bxc6 {[%emt 0:00:17]} bxc6 {[%emt 0:00:07]} 11. Qc1 {[%emt 0:00:29]} c4 {[%emt 0:00:14]} 12. Nbd2 {[%emt 0:01:11]} Nxd2 {[%emt 0:00:11]} 13. Nxd2 {[%emt 0:00:35]} Bf5 {[%emt 0:00:11]} 14. b3 {[%emt 0:00:27]} Bd3 {[%emt 0:00:12]} 15. Qa3 {[%emt 0:01:15] [#]} e6 $146 {[%emt 0:01:04]} ({Predecessor:} 15... Rfe8 16. Qa4 Qb5 17. Qxb5 cxb5 18. a4 b4 19. Rec1 Rec8 20. bxc4 dxc4 21. cxb4 e6 {0-1 (50) Alekseev,E (2626)-Vokhidov,S (2512) Chess.com INT 2020}) 16. bxc4 {[%emt 0:11:14]} dxc4 {[%emt 0:00:10]} 17. d5 {[%emt 0:00:24]} Qd8 {[%emt 0:00:27]} 18. dxe6 {[%emt 0:10:34]} fxe6 {[%emt 0:00:09]} 19. Bc5 {[%emt 0:22:53]} Rf5 {[%emt 0:02:36]} 20. Bd6 {[%emt 0:17:06]} Bf8 {[%emt 0:01:05]} 21. Ne4 {[%emt 0:28:23]} Rxe5 {[%emt 0:08:58]} 22. Nf6+ {[%emt 0:00:06]} Kf7 {[%emt 0:00:13][%cal Bg8f7,Bf7f6,Bf6f5][%mdl 32]} 23. Bxf8 {[%emt 0:00:42]} (23. Rxe5 $2 {is the wrong capture.} Bxd6 24. Qa5 Bxe5 25. Qxe5 Qxf6 $19) 23... Ra5 $36 {[%emt 0:00:46][%mdl 2048] Black is pushing.} 24. Qd6 {[%emt 0:02:47]} Qxd6 {[%emt 0:00:10]} 25. Bxd6 {[%emt 0:00:03] Strongly threatening Ng4.} Kxf6 {[%emt 0:00:04]} 26. a4 {[%emt 0:01:59]} Rd5 {[%emt 0:02:07]} 27. Bc7 {[%emt 0:00:44]} e5 {[%emt 0:06:24][%cal Be6e5,Be5e4][%mdl 32]} 28. f4 {[%emt 0:00:09] [#]} e4 $1 {[%emt 0:00:03]} 29. Ra2 {[%emt 0:00:10]} Kf5 {[%emt 0:00:59]} ({Better is} 29... Ke6 $17) 30. Kf2 {[%emt 0:00:32]} (30. Rb2 $11) 30... Rd7 $17 {[%emt 0:01:48]} 31. Be5 {[%emt 0:00:35]} g5 {[%emt 0:00:03]} (31... Rb7 $15) 32. g4+ $1 $11 {[%emt 0:00:23]} Ke6 {[%emt 0:00:14]} 33. Ke3 {[%emt 0:00:55]} Rf8 {[%emt 0:03:10]} 34. Rf2 {[%emt 0:00:44]} c5 {[%emt 0:01:02]} 35. h4 {[%emt 0:00:32][%cal Bh2h4,Bh4h5,Bh5g6,Bg6g7][%mdl 32]} gxf4+ {[%emt 0:03:20]} 36. Bxf4 {[%emt 0:00:02]} Rb7 {[%emt 0:04:00]} 37. h5 {[%emt 0:00:27]} Rb3 {[%emt 0:10:19]} 38. Rc1 {[%emt 0:00:03]} Ra3 {[%emt 0:00:19]} 39. g5 {[%emt 0:00:32]} Rxa4 {[%emt 0:00:33]} (39... Rf5 $11 {keeps the balance.}) 40. g6 $16 {[%emt 0:01:24]} hxg6 {[%emt 0:01:20]} 41. hxg6 {[%emt 0:10:16]} Rg8 {[%emt 0:03:30] [#]} 42. Rg1 {[%emt 0:07:17]} ({White should try} 42. Rg2 $1 $16) 42... Ra3 $11 {[%emt 0:07:36] The position is equal.} 43. g7 {[%emt 0:00:10] Threatens to win with Rg6+.} Rxc3 {[%emt 0:03:28]} 44. Rg6+ {[%emt 0:00:12]} Kf7 {[%emt 0:00:50]} 45. Be5+ {[%emt 0:00:43]} Kxg6 {[%emt 0:00:04]} 46. Bxc3 {[%emt 0:00:07] KRB-KRB} a5 {[%emt 0:01:16]} 47. Ra2 {[%emt 0:00:29]} a4 {[%emt 0:01:47]} 48. Rg2+ {[%emt 0:01:32]} Kf7 {[%emt 0:01:24]} 49. Rf2+ {[%emt 0:00:10]} Kg6 {[%emt 0:00:09]} 50. Rg2+ {[%emt 0:00:10]} Kf7 {[%emt 0:00:20]} 51. Rf2+ {[%emt 0:00:07] Weighted Error Value: White=0.07 (flawless) /Black=0.10 (very precise)} 1/2-1/2

[Event "Teplice Open 2022"]
[Site "Teplice"]
[Date "2022.06.21"]
[Round "4.10"]
[White "Umetsubo, Cesar Hidemitsu"]
[Black "Azarov, Sergei"]
[Result "0-1"]
[ECO "E32"]
[WhiteElo "2409"]
[BlackElo "2588"]
[Annotator "TA"]
[PlyCount "78"]
[EventDate "2022.06.18"]
[EventType "swiss"]
[EventCountry "CZE"]
[SourceTitle "playchess.com"]
[Source "ChessBase"]
[SourceQuality "1"]
[TimeControl "40/5400+30:1800+30"]

{[%evp 13,78,-4,-2,-9,21,6,18,12,0,4,6,4,0,-37,0,-20,-21,-33,-30,-22,0,0,-5,-3,0,-20,-22,-50,0,0,0,-41,0,0,0,-31,0,0,0,-18,-12,-46,-73,-55,-65,-114,-114,-126,-131,-143,-148,-222,-210,-214,-220,-227,-221,-364,-295,-527,-534,-737,-727,-684,-663,-885,-814]} 1. d4 {[%emt 0:00:11]} Nf6 {[%emt 0:00:10]} 2. c4 {[%emt 0:00:11]} e6 {[%emt 0:00:11]} 3. Nc3 {[%emt 0:00:14]} Bb4 {[%emt 0:00:23]} 4. Qc2 {[%emt 0:00:12]} O-O {[%emt 0:00:34]} 5. a3 {[%emt 0:00:08]} Bxc3+ {[%emt 0:00:15]} 6. Qxc3 {[%emt 0:00:03]} d6 {[%emt 0:00:39] 6...d5 is setting a new trend.} 7. Bg5 {[%emt 0:04:35]} Nbd7 {[%emt 0:01:13]} 8. f3 {[%emt 0:02:54] E32: Nimzo-Indian: Classical (4 Qc2): 4...0-0.} b6 {[%emt 0:04:48]} (8... h6 $5 {[%cal Rh6g5]} 9. Bxf6 Qxf6 $11) 9. e4 {[%emt 0:02:43] Threatening e5.} c5 {[%emt 0:01:43]} 10. Nh3 {[%emt 0:05:09] The position is equal.} Ba6 {[%emt 0:04:24]} 11. dxc5 {[%emt 0:11:56] [#]} bxc5 $146 {[%emt 0:00:29]} ({Predecessor:} 11... Nxc5 12. Rd1 e5 13. Qd2 Rc8 14. Be3 Ne6 15. b3 Rc6 16. Be2 Nh5 17. O-O Qf6 {½-½ (30) Kiriakov,P (2552)-Nisipeanu,L (2610) Dubai 2002}) 12. Rd1 {[%emt 0:00:10]} Qb6 {[%emt 0:19:25]} 13. Bf4 {[%emt 0:09:56]} e5 {[%emt 0:12:56]} (13... d5 {with more complications.} 14. Qc2 e5 15. Be3 d4) 14. Bc1 {[%emt 0:02:37]} Rfb8 {[%emt 0:07:16]} 15. Bd3 {[%emt 0:23:30]} Nf8 {[%emt 0:00:00]} 16. f4 {[%emt 0:00:52]} Qb3 {[%emt 0:00:00]} 17. Qxb3 {[%emt 0:02:43]} Rxb3 {[%emt 0:00:00]} 18. f5 $1 {[%emt 0:02:47] Inhibits Ne6.} N8d7 {[%emt 0:00:00]} 19. Bc2 {[%emt 0:03:06]} Rb6 {[%emt 0:01:41]} 20. b3 {[%emt 0:13:00]} Bb7 {[%emt 0:08:40]} ({Better is} 20... Nb8 $15) 21. Nf2 $11 {[%emt 0:00:00]} Ne8 {[%emt 0:05:14]} 22. Ng4 {[%emt 0:00:00]} Nef6 {[%emt 0:00:00]} (22... Nb8 $5 {[%cal Rb8c6]}) 23. Nf2 {[%emt 0:00:00]} a5 {[%emt 0:03:04]} 24. Be3 {[%emt 0:00:00]} Ne8 {[%emt 0:00:00]} (24... a4 $5 {[%cal Ra4b3]} 25. b4 cxb4 26. Bxb6 Nxb6 $15) 25. g4 {[%emt 0:10:55]} Nb8 {[%emt 0:01:26][%cal Bd7b8,Bb8c6,Bc6d4][%mdl 32]} 26. Rd3 {[%emt 0:01:25]} Nc6 {[%emt 0:00:00]} 27. Bd1 {[%emt 0:00:11]} (27. g5 {is interesting.} Nd4 28. Kd2 Nc7 29. h4) 27... Nd4 {[%emt 0:00:00][%cal Oa5a4]} 28. g5 {[%emt 0:01:24]} a4 {[%emt 0:02:33][%cal Ra4b3]} 29. bxa4 {[%emt 0:00:40] [#]} (29. b4 $1 $15 {might be stronger.}) 29... Bc6 $1 $17 {[%emt 0:00:24]} 30. O-O {[%emt 0:01:43]} Bxa4 {[%emt 0:00:43] Black is more active.} 31. Bxd4 {[%emt 0:00:54]} cxd4 {[%emt 0:00:29]} 32. f6 {[%emt 0:01:39]} (32. Rg3 $17 {was worth a try.}) 32... Bxd1 $19 {[%emt 0:01:46]} (32... gxf6 33. Rg3 Bxd1 34. gxf6+ Kh8 35. Nxd1) 33. Nxd1 {[%emt 0:00:32]} Nc7 {[%emt 0:00:42]} 34. fxg7 {[%emt 0:00:30]} Ne6 {[%emt 0:00:23]} ({Inferior is} 34... Kxg7 35. Rdf3 Rf8 36. h4 $17) 35. Rf6 {[%emt 0:00:39]} (35. Nf2 $142) 35... Rb1 {[%emt 0:01:39]} ({Not} 35... Nxg7 36. c5 Rb1 37. cxd6 $15) ({Don't blunder} 35... Nxg5 $2 36. Nf2 $19) 36. Kg2 $2 {[%emt 0:00:19]} (36. Rf1) 36... Nc5 {[%emt 0:02:08][%mdl 64] [#] Deflection. Black is clearly winning.} 37. Rdf3 {[%emt 0:00:23]} Rxd1 {[%emt 0:01:24]} 38. Rxf7 {[%emt 0:00:22]} Ne6 {[%emt 0:01:02] And now ...Nf4+ would win.} 39. R3f6 {[%emt 0:05:02]} Rd2+ {[%emt 0:00:09] Weighted Error Value: White=0.37/Black=0.09 (flawless)} 0-1